Cogmind - Beta 13 X1 @@@ ROGUE MODE // 2023.09.06 @ 09:44:00 Player: VR-DUX Result: Destroyed by EX-DEC with AWS/EX-DEC Performance ------------- Evolutions (0) 0 Regions Visited (3) 600 Robots Destroyed (26) 130 Value Destroyed (236) 236 Prototype IDs (24) 480 Alien Tech Used (0) 0 Bonus (300) 300 TOTAL SCORE: 1746 Bonus ------- Aligned with FarCom 300 Cogmind --------- Core Integrity 0/250 Matter 149/300 Energy 280/280 System Corruption 1% Temperature Cool (0) Movement Treading (240) Ox1 Location -10/Exiles Parts ------- > --- POWER (1) -------- Heavy Ion Engine > --- PROPULSION (2) --- Light Treads Light Treads > --- UTILITY (2) ------ High-capacity Storage Unit Core Shielding > --- WEAPON (2) ------- Improved Light Cannon Makeshift Axe > --- INVENTORY (20) --- Heavy Ion Engine Heavy Ion Engine Makeshift Power Source Light Treads Makeshift Leg Makeshift Leg High-capacity Storage Unit Medium Battery (150) Small Matter Pod (50) Structural Scanner EM Pulse Gun Improved Light Cannon Improved Light Cannon Rocket Launcher Rocket Launcher Peak State ------------ > --- POWER ------------ Heavy Ion Engine > --- PROPULSION ------- Light Treads Light Treads > --- UTILITY ---------- High-capacity Storage Unit Core Shielding > --- WEAPON ----------- Improved Light Cannon Makeshift Axe > --- INVENTORY -------- Heavy Ion Engine Heavy Ion Engine Makeshift Power Source Light Treads Makeshift Leg Makeshift Leg Medium Battery Small Matter Pod Structural Scanner EM Pulse Gun Improved Light Cannon Improved Light Cannon Rocket Launcher Rocket Launcher [Rating: 16] Favorites ----------- Power Heavy Ion Engine Engine Heavy Ion Engine Propulsion Light Treads Treads Light Treads Leg Aluminum Leg Utility High-capacity Storage Unit Device Structural Scanner Storage High-capacity Storage Unit Protection Core Shielding Weapon Improved Light Cannon Energy Gun Medium Laser Ballistic Gun Assault Rifle Ballistic Cannon Improved Light Cannon Launcher Rocket Launcher Slashing Weapon Makeshift Axe Build | -11 -10 -10 -10 ------- Run | Jun Mat Min Exi Slots Evolved . | . . . . Power . | . . . . Propulsion . | . . . . Utility . | . . . . Weapon . | . . . . Parts Attached 31 | . 15 . 16 Power 2 | . 1 . 1 Engine 2 | . 1 . 1 Core . | . . . . Reactor . | . . . . Propulsion 10 | . 4 . 6 Treads 10 | . 4 . 6 Leg . | . . . . Wheel . | . . . . Hover . | . . . . Flight . | . . . . Utility 9 | . 6 . 3 Device 2 | . 2 . . Storage 4 | . 3 . 1 Processor . | . . . . Hackware . | . . . . Protection 3 | . 1 . 2 Artifact . | . . . . Weapon 10 | . 4 . 6 Energy Gun 2 | . 2 . . Energy Cannon . | . . . . Ballistic Gun . | . . . . Ballistic Cannon 4 | . 1 . 3 Launcher 3 | . 1 . 2 Special Weapon . | . . . . Impact Weapon . | . . . . Slashing Weapon 1 | . . . 1 Piercing Weapon . | . . . . Special Melee Weapon . | . . . . Unidentified Prototypes 1 | . 1 . . Parts Lost 9 | . 2 . 7 Power 1 | . 1 . . Propulsion 4 | . . . 4 Utility 2 | . 1 . 1 Weapon 2 | . . . 2 Highest Loss Streak 6 | . 1 . 6 To Critical Strikes 5 | . . . 5 Average Slot Usage (%) 98 | . 94 100 98 Engine 14 | . 14 14 14 Treads 26 | . 22 28 26 Device 9 | . 3 14 9 Storage 14 | . 14 14 14 Protection 3 | . 5 . 4 Energy Gun 9 | . 8 14 8 Ballistic Gun 1 | . 6 . . Ballistic Cannon 13 | . 7 14 15 Launcher 1 | . 5 . 1 Slashing Weapon 1 | . . . 3 Naked Turns . | . . . . Heaviest Build 59 | 11 55 55 59 Greatest Support 40 | 20 40 40 40 Greatest Overweight (x) 2 | . 1 1 2 Average Overweight (x) . | . . 1 1 Largest Inventory Capacity 20 | 8 20 20 20 Average Capacity 18 | 8 14 20 20 Most Carried 20 | 6 15 16 20 Average Carried 15 | 6 12 15 16 Final Capacity 20 | 8 20 20 20 Final Carried 16 | 6 15 16 15 Class Distribution -------------------- 100% | Mutant Dominant Class ---------------- Mutant | -10/Materials Mutant | -10/Mines Mutant | -10/Exiles Resources | -11 -10 -10 -10 ----------- Run | Jun Mat Min Exi Matter Collected 1076 | 224 187 150 515 Remotely . | . . . . Salvage Created 685 | 12 439 55 179 Parts 70 | 3 37 8 22 Haulers Intercepted 1 | . 1 . . Recyclers Shooed 1 | . 1 . . Parts Field Recycled . | . . . . Retrieved Matter . | . . . . Parts Self-Destructed . | . . . . Prevented . | . . . . Kills | -11 -10 -10 -10 ------- Run | Jun Mat Min Exi Combat Hostiles Destroyed 17 | . 11 3 3 Guns 9 | . 7 2 . Cannons 3 | . 1 1 1 AOE 5 | . 3 . 2 Classes Destroyed 11 | 1 6 1 3 Worker 1 | . . 1 . Builder 3 | . 3 . . Tunneler 1 | 1 . . . Hauler 1 | . 1 . . Recycler 2 | . 2 . . Mechanic 1 | . 1 . . Turret 1 | . . . 1 Swarmer 13 | . 10 3 . Grunt 1 | . 1 . . Zionite 1 | . . . 1 Assembled 2 | . . . 2 Best Kill Streak 4 | 1 4 3 2 Combat Bots Only 4 | . 4 3 2 Max Kills in Single Turn 2 | 1 2 1 1 Gunslinging . | . . . . Exploded 2 | . 2 . 1 Melee . | . . . . Uniques/NPCs Destroyed 2 | . . . 2 8R-AWN (-10/Exiles) EX-HEX (-10/Exiles) Combat | -11 -10 -10 -10 -------- Run | Jun Mat Min Exi Damage Taken 1454 | . 313 37 1104 Core 251 | . 107 6 138 Absorbed by Shields . | . . . . Redirected to Shielding 15 | . . . 15 Core Remaining (%) 100 | 100 . . . Volleys Fired 143 | 6 46 7 84 Largest 2 | 2 2 2 2 Hottest 89 | 40 89 89 78 Shots Fired 196 | 12 85 14 85 Gun 89 | 12 70 7 . Cannon 85 | . 8 7 70 Launcher 22 | . 7 . 15 Special . | . . . . Kinetic 128 | 12 39 7 70 Thermal 46 | . 39 7 . Explosive 22 | . 7 . 15 Electromagnetic . | . . . . Robot Hit Streak 9 | 5 6 3 9 Robot Miss Streak 4 | 2 3 2 4 Penetration Max . | . . . . Secondary Targets 1 | . 1 . . Max Gunslinging Chain 1 | . 1 . . Shots Hit Robots 118 | 7 47 7 57 Core Hits 53 | 1 25 4 23 Critical Kills . | . . . . Critical Parts Destroyed . | . . . . Critical Strikes 4 | . 2 . 2 Burn 1 | . 1 . . Blast 2 | . 1 . 1 Sever 1 | . . . 1 Melee Attacks 11 | . . . 11 Impact . | . . . . Slashing 11 | . . . 11 Piercing . | . . . . Sneak Attacks . | . . . . Combat Hostiles . | . . . . Follow-up Attacks . | . . . . Damage Inflicted 3322 | 80 876 130 2236 Guns 679 | 80 559 40 . Cannons 1137 | . 89 90 958 Explosions 739 | . 228 . 511 Melee 767 | . . . 767 Ramming . | . . . . Kinetic 1511 | 80 383 90 958 Thermal 305 | . 265 40 . Explosive 739 | . 228 . 511 Electromagnetic . | . . . . Impact . | . . . . Slashing 767 | . . . 767 Piercing . | . . . . Highest Corruption 1 | . . . 1 Average Corruption 1 | . . . 1 Corruption Purged . | . . . . Corruption Blocked . | . . . . Overload Shots . | . . . . Overflow Damage 106 | . 5 3 98 Projectiles 8 | . 5 3 . Explosions 4 | . . . 4 Melee 94 | . . . 94 Knockbacks 14 | . 3 1 10 Impact . | . . . . Kinetic 14 | . 3 1 10 Secondary . | . . . . Self-Inflicted Damage 48 | . . . 48 Shots 1 | . . . 1 Rammed . | . . . . Targets Rammed . | . . . . Kicked . | . . . . Crushed . | . . . . Highest Temperature 120 | . 117 120 81 Average Temperature 38 | . 38 41 38 Received Heat Transfer 12 | . 12 . . Siege Activations . | . . . . Robots Corrupted . | . . . . Combat Hostiles . | . . . . Parts Fried . | . . . . Impact Corruptions . | . . . . Robots Melted . | . . . . Combat Hostiles . | . . . . Parts Melted 2 | . 2 . . Heat Transferred 962 | . 851 111 . Parts Sabotaged . | . . . . Parts Stolen . | . . . . Parts Stripped . | . . . . Power Chain Reactions . | . . . . Missiles Intercepted . | . . . . Alert | -11 -10 -10 -10 ------- Run | Jun Mat Min Exi Peak Influence 377 | 5 377 131 . Initial 61 | . 3 61 . Average 96 | 2 176 41 . Maximum Alert Level 1 | . 1 . . Low Security (%) 84 | 100 61 100 . Level 1 15 | . 38 . . Level 2 . | . . . . Level 3 . | . . . . Level 4 . | . . . . Level 5 . | . . . . High Security . | . . . . Max Security . | . . . . Squads Dispatched . | . . . . Investigation . | . . . . Extermination . | . . . . Reinforcement . | . . . . Assault . | . . . . Garrison . | . . . . Intercept . | . . . . Searches Triggered . | . . . . Construction Impeded . | . . . . Haulers Reinforced . | . . . . Active Scanning Responses . | . . . . Cargo Convoy Interrupts . | . . . . Stealth | -11 -10 -10 -10 --------- Run | Jun Mat Min Exi Distress Signals 2 | . 2 . . Communications Jammed . | . . . . Distress Signals . | . . . . Times Spotted 48 | . 22 2 24 Peak Tracking Total 9 | . 4 1 9 Tactical Retreats 6 | . 2 . 4 Traps | -11 -10 -10 -10 ------- Run | Jun Mat Min Exi Traps Triggered . | . . . . Indirectly . | . . . . Trap Hack Attempts . | . . . . Triggered . | . . . . Disarmed 6 | . 6 . . Reprogrammed . | . . . . Reused . | . . . . Traps Extracted . | . . . . Installed . | . . . . Triggered . | . . . . Machines | -11 -10 -10 -10 ---------- Run | Jun Mat Min Exi Machines Disabled 9 | . 1 . 8 Max in Single Turn 1 | . 1 . 1 Machines Repaired . | . . . . Machines Sabotaged . | . . . . Overloaded Fab Kills . | . . . . Hacking | -11 -10 -10 -10 --------- Run | Jun Mat Min Exi Machines Accessed 10 | . 8 . 2 Terminals 6 | . 6 . . Fabricators . | . . . . Repair Stations . | . . . . Recycling Units 2 | . 2 . . Scanalyzers . | . . . . Garrison Access . | . . . . Total Hacks 24 | . 22 . 2 Successful 12 | . 10 . 2 Failed 12 | . 12 . . Catastrophic 6 | . 6 . . Database Lockouts . | . . . . Manual 18 | . 17 . 1 Terminals 19 | . 19 . . Fabricators . | . . . . Repair Stations . | . . . . Recycling Units 3 | . 3 . . Scanalyzers . | . . . . Garrison Access . | . . . . Terminal Hacks 11 | . 9 . 2 Record 1 | . . . 1 Robot Analysis 6 | . 6 . . Branch Access Points 1 | . 1 . . Locate Traps 1 | . 1 . . Disarm Traps 1 | . 1 . . Derelict Proto ID Bank 1 | . . . 1 Fabricator Hacks . | . . . . Repair Station Hacks . | . . . . Recycling Unit Hacks 1 | . 1 . . Retrieve Components 1 | . 1 . . Scanalyzer . | . . . . Garrison Access Hacks . | . . . . Unauthorized Hacks . | . . . . Terminals . | . . . . Fabricators . | . . . . Repair Stations . | . . . . Recycling Units . | . . . . Scanalyzers . | . . . . Garrison Access . | . . . . Data Cores Recovered . | . . . . Used . | . . . . Hacking Detections 8 | . 8 . . Full Trace Events 2 | . 2 . . Feedback Events . | . . . . Feedback Blocked . | . . . . Robot Schematics Acquired . | . . . . Robots Built . | . . . . Authchips . | . . . . Time . | . . . . Total Robot Build Rating . | . . . . Part Schematics Acquired . | . . . . Parts Built . | . . . . Authchips . | . . . . Time . | . . . . Total Part Build Rating . | . . . . Parts Repaired . | . . . . Time . | . . . . Parts Recycled . | . . . . Recycled Matter . | . . . . Retrieved Matter . | . . . . Retrieved Components 4 | . 4 . . Parts Scanalyzed . | . . . . Part Schematics Acquired . | . . . . Parts Damaged . | . . . . Bothacking | -11 -10 -10 -10 ------------ Run | Jun Mat Min Exi Used RIF Installer . | . . . . Robots Hacked . | . . . . Non-combat . | . . . . Combat . | . . . . Robot Hacks Applied . | . . . . Relay Couplers Released . | . . . . Fabnet Peak Effective % . | . . . . Robots Rewired . | . . . . Allies Hacked . | . . . . Hacks Repelled . | . . . . Allies | -11 -10 -10 -10 -------- Run | Jun Mat Min Exi Total Allies . | . . . . Largest Group . | . . . . Highest-Rated Group . | . . . . Highest-Rated Ally . | . . . . Total Orders . | . . . . Ally Attacks . | . . . . Total Damage . | . . . . Kills . | . . . . Allies Corrupted . | . . . . Allies Melted . | . . . . Intel | -11 -10 -10 -10 ------- Run | Jun Mat Min Exi Robot Analysis Total 6 | . 6 . . Derelict Logs Recovered . | . . . . Drone Launches . | . . . . Drone Recoveries . | . . . . Exploration | -11 -10 -10 -10 ------------- Run | Jun Mat Min Exi Turns Passed 5206 | 33 934 1274 2965 Spaces Moved 2005 | 14 458 421 1112 Core . | . . . . Treads 1914 | . 381 421 1112 Legs 91 | 14 77 . . Wheels . | . . . . Hover . | . . . . Flight . | . . . . Fastest Speed 120 | 120 120 240 240 Average Speed 224 | 120 161 240 245 Slowest Speed 320 | 120 240 240 320 Overloaded Moves . | . . . . Propulsion Burnouts . | . . . . Robots Hopped . | . . . . Cave-ins Triggered . | . . . . Exploration Rate (%) 56 | 3 72 81 71 Regions Visited 3 Branch Regions 2 Pre-discovered Areas 1 | . . . 1 Known Exits Taken 1 | . 1 . . Unknown Exits Taken 2 | 1 . 1 . Scrap Searched . | . . . . Spaces Dug . | . . . . Terrain Destroyed 82 | . 44 . 38 Melee . | . . . . Projectile 3 | . . . 3 AOE 79 | . 44 . 35 Terrain Rammed . | . . . . Walls Destroyed . | . . . . Machines Disabled . | . . . . Actions | -11 -10 -10 -10 --------- Run | Jun Mat Min Exi Total 2518 | 19 573 672 1254 Wait 274 | . 19 244 11 Move 2002 | 13 457 420 1112 Hop . | . . . . Pick Up 32 | . 19 1 12 Fast Attach 6 | . 5 . 1 Attach 9 | . 3 . 6 Detach 1 | . 1 . . Swap 17 | . 8 . 9 Drop 23 | . 15 . 8 Fire 143 | 6 46 7 84 Melee 11 | . . . 11 Ram . | . . . . Kick . | . . . . Crush . | . . . . Escape Stasis . | . . . . Rewire . | . . . . Trap . | . . . . Miscellaneous . | . . . . Route ------- -11/Junkyard -10/Materials (discovered 4 exits: [*Mat x2] / *Min / [Sub]) -10/Mines (discovered 4 exits: [*Mat x2] / *Exi / [Sub]) -10/Exiles History --------- Turn | Location | Event 1 | -11/Junkyard | Discovered new exit (range 1) 34 | -11/Junkyard | Entered Materials 138 | -10/Materials | Discovered new exit (range 7) 348 | -10/Materials | Build established: Mutant 500 | -10/Materials | Derelicts attacked the area 623 | -10/Materials | Identified exit to Mines 636 | -10/Materials | Discovered new exit (range 16) 814 | -10/Materials | Discovered new exit (range 11) 968 | -10/Materials | Entered Mines 1141 | -10/Mines | Discovered new exit (range 7) 1424 | -10/Mines | A weapon hastily lodged in a ceiling crevice suddenly fell to the ground 1534 | -10/Mines | Assembled infested the area 2103 | -10/Mines | Discovered new exit (range 5) 2182 | -10/Mines | Discovered new exit (range 6) 2233 | -10/Mines | Deemed a non-threat by the Exiles lab entrance 2233 | -10/Mines | Discovered new exit (range 5) 2242 | -10/Mines | Entered Exiles 2305 | -10/Exiles | Met 8R-AWN 2346 | -10/Exiles | Met EX-HEX 2421 | -10/Exiles | Met EX-BIN 2582 | -10/Exiles | Met EX-DEC 3056 | -10/Exiles | Learned location of Zion (-6) 3224 | -10/Exiles | Aligned with FarCom system 3227 | -10/Exiles | Given EX-Vault access code 3282 | -10/Exiles | Opened EX-Vault 3335 | -10/Exiles | Warned to stay clear of 0b10 Research branches 4125 | -10/Exiles | Attacked by the Exiles 4160 | -10/Exiles | Core integrity fell below 50% 4301 | -10/Exiles | Core integrity fell below 20% 4339 | -10/Exiles | Destroyed 8R-AWN 4348 | -10/Exiles | Lost 6 parts (4n1u1w) 5199 | -10/Exiles | Destroyed EX-HEX 5207 | -10/Exiles | Destroyed by EX-DEC with AWS/EX-DEC Last Messages --------------- 04595_ Destroyed Ion Engine. 04597_ Sneak attack on A-02 Transporter. 04599_ A-02 Transporter destroyed. 04604_ Acquired Lgt. Treads. 04611_ Sneak attack on A-02 Transporter. 04617_ Destroyed Ion Engine. 04619_ Sneak attack on A-02 Transporter. 04619_ Destroyed Lgt. Treads. 04619_ A-02 Transporter destroyed. 04623_ Acquired Lgt. Treads. 04627_ Acquired 87 matter. 04833_ as-30634 destroyed. 04835_ Acquired 12 matter. 04984_ W1-DM0 Mak. Leg blasted off. 04984_ W1-DM0 destroyed. 04991_ Acquired 24 matter. 05158_ Acquired Mak. Leg. 05165_ Acquired Mak. Power Source. 05195_ EX-HEX knocked back. 05199_ EX-HEX destroyed. Map ----- +----------------------------------------------------+ | ?????????###""" """####??#######""" | | ?????????##""" """####???????###"""" | | ?????????##""" ""##############"" | | ?????????##"" ##############""" | | ?????????##"" ## ! ####""" | | ?????????##"" !!!!!"""" | | ?????????###" | | ?????????###" | | ??????????### | | ??????????###" " "" | | ???????????##"" " ""## ##""" " " " | | ???????????##"" ""#### ######""" "" | | ???????????##" """"##### ########"""" | | ???????????##""" """##### ############ | | ???????????### ""#####! " ##?###### | | ???????????###"" """######" !##??????? | | ????????????###""" ####?##" "##??????? | | ????????????####"""" ####??## "" "##??????? | | ?????????????##### ###???##########??????? | | ??????????????######## ###????##########??????? | | ????????????????####### ###????????????????????? | | ????????????????????### ##?????????????????????? | | ?????????????????????## ##?????????????????????? | | ?????????????????????## ##?????????????????????? | | ?????????????????????## ##?????????????????????? | | ?????????????????????##c @##?????????????????????? | | ?????????????????????## ##?????????????????????? | | ??????????????????????# ##?????????????????????? | | ??????????????????????# #??????????????????????? | | ??????????????????????# #??????????????????????? | | ??????????????????????#! #??????????????????????? | | ??????????????????????"!!z"??????????????????????? | | ??????????????????????!%%! ??????????????????????? | | ????????????????????? !!=! ?????????????????????? | | ????????????????????? !! ?????????????????????? | | ???????????????????? ????????????????????? | | ???????????????????? ????????????????????? | | ???????????????????"""" ""???????????????????? | | ????????????????????#####"""#????????????????????? | | ????????????????????????? "????????????????????? | | ????????????????????????? ??????????????????????? | | ?????????????????????????????????????????????????? | | ?????????????????????????????????????????????????? | | ?????????????????????????????????????????????????? | | ?????????????????????????????????????????????????? | | ?????????????????????????????????????????????????? | | ?????????????????????????????????????????????????? | | ?????????????????????????????????????????????????? | | ?????????????????????????????????????????????????? | | | +----------------------------------------------------+ Best States ------------- Heat Dissipation 25 Energy Generation 14 Energy Capacity 280 Matter Stores 300 Matter Capacity 300 Sight Range 16 Terrain Scan Density 10 Armor Coverage 150 Core Shielding 20 Evasion (%) 55 Recoil Reduction 2 Item Schematics ----------------- None Robot Schematics ------------------ None Fabricated ------------ Nothing Alien Tech Used ----------------- None Achievements -------------- None Challenges ------------ None Game ------ Seed IonThiefUnit Manual? 0 Play Time 00:44:49 Cumulative 104.5 hours Start 2023.09.06 @ 08:23:08 End 2023.09.06 @ 09:44:00 Sessions 1 Manual Loads 0 Difficulty Rogue Special Mode None Game No. 84 Rogue 84 Adventurer 0 Explorer 0 Win Type - Total 2 Types 2/0/0/0/0/0/0/0/0 Lore% 45 Gallery% 41 Achievement% 41 Wizard Run 0 Options --------- ASCII 0 Keyboard 0 Movement Mouse Keybinds 0 Fullscreen 1 Font 18/SmallcapsGlow Map View 76x50 Tactical HUD 1 Map Filters NONE Filters NONE Steam X RUN: c1eb9cfb-2e41-4ff7-9a21-ba6a727b507d